fUSD/lending_fUSD_20240414
["ID","MTS","AMOUNT","RATE_DAILY","PERIOD"]
[322560726,1713061838191,-1581.18174546,0.000208,2]
[322560727,1713061838202,-527.22410352,0.000208,2]
[322560728,1713061838214,-503.55155047,0.000208,2]
[322560729,1713061838234,-1016.17744579,0.000208,2]
[322560730,1713061838416,-212338.64220458,0.000208,2]
[322560731,1713061838426,-100000.0,0.000208,2]
[322560732,1713061838437,-603.2328,0.000208,2]
[322560733,1713061838447,-316.18771264,0.00020811,2]
[322560734,1713061838457,-1640.83942686,0.00020811,2]
[322560735,1713061838467,-200.0,0.00020822,2]
[322560736,1713061838476,-1000.0,0.00020832,2]
[322560738,1713061838485,-500.0,0.00020832,2]
[322560741,1713061838495,-316.18771264,0.00020833,2]
[322560742,1713061838504,-1640.83942686,0.00020833,2]
[322560745,1713061838514,-316.18771264,0.00020856,2]
[322560746,1713061838523,-1640.83942686,0.00020856,2]
[322560749,1713061838533,-316.18771264,0.00020878,2]
[322560751,1713061838543,-1640.83942686,0.00020878,2]
[322560753,1713061838552,-213.0,0.000209,2]
[322560755,1713061838562,-16908.3548,0.000209,2]
[322560756,1713061838571,-467.8579,0.000209,2]
[322560759,1713061838581,-160.3685,0.000209,2]
[322560762,1713061838592,-174.90339265,0.000209,2]
[322560764,1713061838602,-1000.0,0.000209,2]
[322560766,1713061838611,-3967.6282,0.000209,2]
[322560768,1713061838621,-5332.57083556,0.000209,2]
[322560770,1713061838631,-157.18489306,0.000209,2]
[322560772,1713061838643,-316.18771264,0.000209,2]
[322560774,1713061838652,-1640.83942686,0.000209,2]
[322560777,1713061838661,-3000.0,0.0002092,2]
[322560780,1713061838671,-152.12,0.00020971,2]
[322560783,1713061838681,-2204.974169,0.00020979,2]
[322560786,1713061838691,-3528.26702456,0.00020997,2]
[322560788,1713061838701,-177.89510825,0.00020998,2]
[322560790,1713061838711,-1990.94116208,0.00020998,2]
[322560792,1713061838721,-208.42643955,0.00020998,2]
[322560794,1713061838731,-292.56617258,0.00020998,2]
[322560795,1713061838741,-346.26587422,0.00020998,2]
[322560796,1713061838751,-792.60772369,0.00020998,2]
[322560797,1713061838761,-539.6004816,0.00020998,2]
[322560798,1713061838771,-425.87710461,0.00020998,2]
[322560799,1713061838782,-156.59498251,0.00020998,2]
[322560800,1713061838792,-200.0,0.00020998,2]
[322560801,1713061838804,-155.68809682,0.00020998,2]
[322560802,1713061838814,-298.02569821,0.00020998,2]
[322560803,1713061838824,-156.42495555,0.00020998,2]
[322560804,1713061838835,-307.6277619,0.00020998,2]
[322560805,1713061838844,-4804.06992825,0.00020998,2]
[322560806,1713061838854,-158.5493226,0.00020998,2]
[322560807,1713061838865,-155.8594798,0.00020998,2]
[322560808,1713061838875,-4989.10649129,0.00020998,2]
[322560809,1713061838885,-155.99421349,0.00020998,2]
[322560810,1713061838894,-156.47086348,0.00020998,2]
[322560811,1713061838903,-1828.34889474,0.00020998,2]
[322560812,1713061838913,-155.29333857,0.00020998,2]
[322560813,1713061838923,-238.74729735,0.00020998,2]
[322560814,1713061838932,-1061.24131869,0.00020998,2]
[322560815,1713061838942,-3787.28191786,0.00020998,2]
[322560816,1713061838951,-969.67171759,0.00020998,2]
[322560817,1713061838960,-492.71472897,0.00020998,2]
[322560818,1713061838970,-552.1900878,0.00020998,2]
[322560819,1713061838988,-5571.6792615,0.00020999,2]
[322560820,1713061839001,-500.0,0.00020999,2]
[322560821,1713061839011,-442.4711004,0.00020999,2]
[322560822,1713061839020,-245.13308242,0.00020999,2]
[322560823,1713061839030,-261440.93197725,0.00021,2]
[322560831,1713061840550,-14253.01605069,0.00021,2]
[322560832,1713061840587,-696048.06421158,0.00021,2]
[322560833,1713061840599,-2782.55455575,0.00021,2]
[322560834,1713061840611,-490.1733676,0.00021,2]
[322560835,1713061840623,-1331.44686762,0.00021,2]
[322560836,1713061840924,-318589.99999997,0.00021,2]
[322560839,1713061840936,-10820343.1247393,0.00021,2]
[322560841,1713061840948,-9623854.93286558,0.00021,2]
[322560843,1713061840957,-1406.45,0.00021,2]
[322560844,1713061840967,-1135.78,0.00021,2]
[322560845,1713061840977,-1430.30975011,0.00021,2]
[322560846,1713061840986,-1000.0,0.00021,2]
[322560847,1713061840996,-2032328.28610637,0.00021,2]
[322560848,1713061841006,-1480120.46292834,0.00021,2]
[322560849,1713061841691,-152.04,0.0002079,2]
[322560850,1713061841701,-330.52334506,0.00020899,2]
[322560851,1713061841712,-152.04,0.0002099,2]
[322560852,1713061841722,-152.04,0.0002099,2]
[322560853,1713061841733,-152.04,0.0002099,2]
[322560854,1713061841744,-62663.60234975,0.00021,2]
[322560855,1713061841756,-355.45035489,0.00021,2]
[322560856,1713061841769,-698.52699846,0.00021,2]
[322560857,1713061841782,-421.0600516,0.00021,2]
[322560858,1713061841795,-1579.36110569,0.00021,2]
[322560859,1713061841810,-1073.51231166,0.00021,2]
[322560860,1713061841841,-940.7838,0.000207,2]
[322560861,1713061841855,-117786.8738243,0.00021,2]
[322560862,1713061841866,-715.48314253,0.00021,2]
[322560863,1713061841881,-3310.74367378,0.00021,2]
[322560864,1713061841894,-3000.0,0.00021,2]
[322560865,1713061841904,-1516.99961312,0.00021201,2]
[322560866,1713061841913,-3000.0,0.0002123,2]
[322560867,1713061841922,-2878.40363181,0.00021235,2]
[322560868,1713061841932,-198.367028,0.0002137,2]
[322560869,1713061841942,-300.0,0.00021497,2]
[322560870,1713061841953,-152.12,0.00021504,2]
[322560871,1713061841963,-3000.0,0.0002155,2]
[322560872,1713061841973,-1256.0,0.000216,2]
[322560873,1713061841983,-3262.0,0.000217,2]
[322560874,1713061841994,-1000.0,0.00021725,2]
[322560875,1713061842004,-3000.0,0.0002186,2]
[322560876,1713061842014,-150.0,0.000219,2]
[322560877,1713061842026,-250.0,0.00021918,2]
[322560878,1713061842036,-152.76,0.00021918,2]
[322560879,1713061842046,-250.0,0.00021918,2]
[322560880,1713061842057,-800.0,0.00021973,2]
[322560881,1713061842066,-784.24043551,0.00022,2]
[322560882,1713061842075,-282.36447931,0.00022,2]
[322560883,1713061842085,-952.76169965,0.00022,2]
[322560884,1713061842094,-7725.46182596,0.00022,2]
[322560885,1713061842103,-238.8201218,0.00022,2]
[322560886,1713061842115,-1054.86591254,0.00022,2]
[322560887,1713061842127,-175.0,0.00022,2]
[322560888,1713061842139,-261.18540268,0.00022,2]
[322560889,1713061842149,-261.18540268,0.00022,2]
[322560890,1713061842158,-261.18540268,0.00022,2]
[322560891,1713061842167,-261.18540268,0.00022,2]
[322560892,1713061842178,-223.99976425,0.0002211,2]
[322560893,1713061842187,-3000.0,0.0002217,2]
[322560894,1713061842198,-500.0,0.00022171,2]
[322560895,1713061842208,-198.367028,0.00022192,2]
[322560896,1713061842218,-1000.0,0.000222,2]
[322560897,1713061842229,-19470.48241811,0.000223,2]
[322560898,1713061842240,-1000.0,0.00022395,2]
[322560899,1713061842249,-150.0,0.000224,2]
[322560900,1713061842259,-33015.40276252,0.000225,2]
[322560901,1713061842269,-1291.92740339,0.000225,2]
[322560902,1713061842279,-200.0,0.00022614,2]
[322560903,1713061842289,-1000.0,0.00022618,2]
[322560904,1713061842300,-1247.4,0.00022678,2]
[322560905,1713061842310,-1717.0,0.000227,2]
[322560906,1713061842321,-48871.81564768,0.00022738,2]
[322560907,1713061842331,-300.0,0.00022867,2]
[322560908,1713061842343,-150.0,0.000229,2]
[322560909,1713061842353,-361.49,0.00022901,2]
[322560910,1713061842363,-550.0,0.00023,3]
[322560911,1713061842374,-198.367028,0.00023014,2]
[322560912,1713061842383,-198.816,0.00023017,2]
[322560913,1713061842398,-198.816,0.00023017,2]
[322560914,1713061842408,-198.816,0.00023017,2]
[322560915,1713061842418,-1000.0,0.00023288,2]
[322560916,1713061842428,-1000.0,0.00023288,2]
[322560917,1713061842438,-1000.0,0.00023288,2]
[322560918,1713061842448,-1000.0,0.00023288,2]
[322560919,1713061842457,-1000.0,0.00023288,2]
[322560920,1713061842467,-1000.0,0.00023288,2]
[322560921,1713061842476,-1000.0,0.00023288,2]
[322560922,1713061842485,-1000.0,0.00023288,2]
[322560923,1713061842494,-1000.0,0.00023288,2]
[322560924,1713061842504,-1000.0,0.00023288,2]
[322560925,1713061842513,-1000.0,0.00023288,2]
[322560926,1713061842523,-1000.0,0.00023288,2]
[322560927,1713061842533,-1050.0,0.00023288,2]
[322560928,1713061842542,-1000.0,0.00023288,2]
[322560929,1713061842552,-1000.0,0.00023288,2]
[322560930,1713061842563,-1000.0,0.00023288,2]
[322560931,1713061842573,-1000.0,0.00023288,2]
[322560932,1713061842582,-1000.0,0.00023288,2]
[322560933,1713061842592,-1000.0,0.00023288,2]
[322560934,1713061842601,-1000.0,0.00023288,2]
[322560935,1713061842611,-1000.0,0.00023288,2]
[322560936,1713061842621,-1000.0,0.00023288,2]
[322560937,1713061842631,-1000.0,0.00023288,2]
[322560938,1713061842645,-1000.0,0.00023288,2]
[322560939,1713061842655,-1000.0,0.00023288,2]
[322560940,1713061842665,-1000.0,0.00023288,2]
[322560941,1713061842675,-1000.0,0.00023288,2]
[322560942,1713061842684,-1000.0,0.00023288,2]
[322560943,1713061842694,-1000.0,0.00023288,2]
[322560944,1713061842704,-1000.0,0.00023288,2]
[322560945,1713061842713,-1000.0,0.00023288,2]
[322560946,1713061842723,-1000.0,0.00023288,2]
[322560947,1713061842732,-1000.0,0.00023288,2]
[322560948,1713061842742,-1000.0,0.00023288,2]
[322560949,1713061842751,-1000.0,0.00023288,2]
[322560950,1713061842760,-1000.0,0.00023288,2]
[322560951,1713061842770,-1000.0,0.00023288,2]
[322560952,1713061842780,-1000.0,0.00023288,2]
[322560953,1713061842790,-1000.0,0.00023288,2]
[322560954,1713061842799,-1000.0,0.00023288,2]
[322560955,1713061842810,-1000.0,0.00023288,2]
[322560956,1713061842820,-1000.0,0.00023288,2]
[322560957,1713061842831,-1000.0,0.00023288,2]
[322560958,1713061842840,-1000.0,0.00023288,2]
[322560959,1713061842850,-1000.0,0.00023288,2]
[322560960,1713061842859,-1000.0,0.00023288,2]
[322560961,1713061842869,-1000.0,0.00023288,2]
[322560962,1713061842878,-1000.0,0.00023288,2]
[322560963,1713061842892,-1000.0,0.00023288,2]
[322560964,1713061842902,-1000.0,0.00023288,2]
[322560965,1713061842913,-1000.0,0.00023288,2]
[322560966,1713061842922,-1000.0,0.00023288,2]
[322560967,1713061842932,-1000.0,0.00023288,2]
[322560969,1713061842941,-1000.0,0.00023288,2]
[322560971,1713061842951,-1000.0,0.00023288,2]
[322560974,1713061842960,-1000.0,0.00023288,2]
[322560977,1713061842970,-1000.0,0.00023288,2]
[322560980,1713061842979,-1000.0,0.00023288,2]
[322560983,1713061842988,-930.0,0.00023288,2]
[322560986,1713061842998,-1135.78,0.000233,2]
[322560989,1713061843007,-150.0,0.000234,2]
[322560991,1713061843017,-788.95161007,0.000235,2]
[322560993,1713061843026,-1000.0,0.0002351,2]
[322560995,1713061843036,-500.0,0.0002351,2]
[322560997,1713061843045,-500.0,0.0002351,2]
[322560999,1713061843055,-1406.45,0.000236,2]
[322561001,1713061843064,-198.367028,0.00023836,2]
[322561003,1713061843073,-150.0,0.000239,2]
[322561005,1713061843082,-1000.0,0.000243,2]
[322561006,1713061843092,-167.0,0.00024353,2]
[322561008,1713061843101,-150.0,0.000244,2]
[322561010,1713061843110,-1000.0,0.00024403,2]
[322561012,1713061843120,-198.367028,0.00024658,2]
[322561015,1713061843128,-152.76,0.00024658,2]
[322561017,1713061843140,-500.0,0.00024849,2]
[322561019,1713061843151,-39108.24545381,0.00024857,2]
[322561021,1713061843159,-884.63981465,0.00024883,2]
[322561081,1713061844073,-152.04,0.0002099,2]
[322561082,1713061844084,-152.04,0.0002099,2]
[322561083,1713061844094,-152.04,0.0002099,2]
[322561084,1713061844103,-152.04,0.0002099,2]
[322561085,1713061844113,-261.18540268,0.00022,2]
[322561086,1713061844123,-261.18540268,0.00022,2]
[322561087,1713061844132,-261.18540268,0.00022,2]
[322561088,1713061844144,-261.18540268,0.00022,2]
[322561089,1713061844153,-261.18540268,0.00022,2]
[322561090,1713061844164,-261.18540268,0.00022,2]
[322561091,1713061844173,-261.18540268,0.00022,2]
[322561092,1713061844183,-261.18540268,0.00022,2]
[322561093,1713061844192,-261.18540268,0.00022,2]
[322561094,1713061844202,-106.30455328,0.00022,2]
[322561095,1713061845333,-154.8808494,0.00022,2]
[322561096,1713061845343,-261.18540268,0.00022,2]
[322561097,1713061845352,-15.39798771,0.00023017,2]
[322561098,1713061845386,-183.41801229,0.00023017,2]
[322561099,1713061845398,-198.816,0.00023017,2]
[322561100,1713061845408,-198.816,0.00023017,2]
[322561101,1713061845417,-198.816,0.00023017,2]
[322561102,1713061845427,-198.816,0.00023017,2]
[322561103,1713061845437,-115.36018535,0.00024883,2]
[322561104,1713061845446,-150.0,0.000249,2]
[322561105,1713061845455,-155.0,0.00025,2]
[322561106,1713061845464,-563.08685838,0.00025,2]
[322561107,1713061845474,-667.30435661,0.00025,2]
[322561108,1713061845486,-1329.454414,0.00025,2]
[322561109,1713061845500,-559.31349864,0.00025,2]
[322561110,1713061845529,-49.37812636,0.00025,2]
[322561111,1713061845539,-155.0,0.00025,2]
[322561112,1713061845549,-155.0,0.00025,2]
[322561113,1713061845558,-1135.78,0.00025,2]
[322561114,1713061845567,-600.0,0.00025,3]
[322561115,1713061845576,-167.0,0.00025157,2]
[322561116,1713061845586,-361.49,0.00025165,2]
[322561117,1713061845595,-1000.0,0.00025295,2]
[322561118,1713061845604,-150.0,0.000254,2]
[322561119,1713061845615,-1247.4,0.00025418,2]
[322561120,1713061845625,-198.367028,0.00025479,2]
[322561121,1713061845635,-314.04141,0.00025798,2]
[322561122,1713061845647,-1406.45,0.000258,2]
[322561123,1713061845655,-1368.71836482,0.00025868,2]
[322561124,1713061845664,-314.04141,0.00025898,3]
[322561125,1713061845673,-314.04141,0.00025898,2]
[322561126,1713061845682,-150.0,0.000259,2]
[322561127,1713061845691,-167.0,0.00025961,2]
[322561128,1713061845700,-314.04141,0.00025998,2]
[322561129,1713061845710,-314.04141,0.00025998,3]
[322561130,1713061845719,-314.04141,0.00026098,3]
[322561131,1713061845729,-314.04141,0.00026098,2]
[322561132,1713061845738,-692.0,0.000261,5]
[322561133,1713061845748,-1000.0,0.00026188,2]
[322561134,1713061845757,-200.0,0.00026188,2]
[322561135,1713061845767,-503.856448,0.00026188,2]
[322561136,1713061845776,-500.0,0.00026188,2]
[322561137,1713061845785,-314.04141,0.00026198,2]
[322561138,1713061845795,-314.04141,0.00026198,3]
[322561139,1713061845808,-271.6846,0.00026268,2]
[322561140,1713061845818,-314.04141,0.00026298,3]
[322561141,1713061845827,-314.04141,0.00026298,2]
[322561142,1713061845837,-244.0140204,0.00026299,2]
[322561143,1713061845847,-342016.1012744,0.000263,2]
[322561146,1713061847071,-155.22816121,0.00021778,2]
[322561147,1713061847080,-261.18540268,0.00022,2]
[322561148,1713061847090,-261.18540268,0.00022,2]
[322561149,1713061847100,-261.18540268,0.00022,2]
[322561150,1713061847109,-261.18540268,0.00022,2]
[322561151,1713061847118,-261.18540268,0.00022,2]
[322561152,1713061847128,-261.18540268,0.00022,2]
[322561153,1713061847138,-261.18540268,0.00022,2]
[322561154,1713061847151,-261.18540268,0.00022,2]
[322561155,1713061847161,-261.18540268,0.00022,2]
[322561156,1713061847171,-261.18540268,0.00022,2]
[322561157,1713061847181,-261.18540268,0.00022,2]
[322561158,1713061847190,-261.18540268,0.00022,2]
[322561159,1713061847200,-261.18540268,0.00022,2]
[322561160,1713061847210,-1261.0,0.0002292,2]
[322561161,1713061847220,-541.0,0.0002292,2]
[322561162,1713061847229,-198.816,0.00023017,2]
[322561163,1713061847239,-198.816,0.00023017,2]
[322561164,1713061847248,-278.33430555,0.0002592,2]
[322561165,1713061847261,-549.5572481,0.0002592,2]
[322561166,1713061847292,-261.18540268,0.00022,2]
[322561167,1713061847302,-433.10844635,0.0002592,2]
[322561168,1713061847311,-1836.70530425,0.000263,2]
[322561177,1713062242973,-251.27451082,0.00020596,2]
[322561178,1713062242997,-5947.3806,0.00020599,2]
[322561179,1713062243022,-13051.34488918,0.000207,2]
[322561180,1713062260461,-30559.61811082,0.000207,2]
[322561181,1713062260498,-790.38188918,0.00020898,2]
[322561182,1713062376947,1914.83154526,0.0002,5]
[322561185,1713062818666,318.06,0.00020205,2]
[322561188,1713062930279,318.06,0.00018943,2]
[322561213,1713063032359,-1409.3,0.00020813,2]
[322561215,1713063032369,-511.02142689,0.00020898,2]
[322561217,1713063032378,-207.9719,0.000209,2]
[322561219,1713063032387,-133.35738938,0.000209,2]
[322561221,1713063032399,-591.826501,0.000209,2]
[322561228,1713063032473,-267.74138254,0.000209,2]
[322561230,1713063032486,-7.07472708,0.000209,2]
[322561232,1713063032496,-1007.15,0.0002098,2]
[322561233,1713063032506,-715.48314253,0.00021,2]
[322561235,1713063032516,-1049.05,0.00021023,2]
[322561237,1713063032527,-1095.19,0.00021102,2]
[322561239,1713063032538,-250.0,0.00021125,2]
[322561241,1713063032547,-150.0,0.00021151,2]
[322561242,1713063032557,-400.0,0.00021179,2]
[322561244,1713063032566,-743.63,0.00021179,2]
[322561246,1713063032575,-4034.48397621,0.00021207,2]
[322561249,1713063032604,-1007.15591784,0.00021207,2]
[322561251,1713063032615,-412.1095,0.00021207,2]
[322561253,1713063032628,-2254.67060595,0.00021207,2]
[322561255,1713063032637,-499.99,0.00021207,2]
[322561256,1713063032647,-318.06,0.00021207,2]
[322561257,1713063032656,-500.0,0.00021243,2]
[322561258,1713063032666,-34.75891581,0.00021276,2]
[322561259,1713063032680,-501.34108419,0.00021276,2]
[322561260,1713063032689,-887.04299552,0.000214,2]
[322561264,1713063032714,-1615.65233433,0.000214,2]
[322561266,1713063032726,-735.30467015,0.000214,2]
[322561268,1713063032735,-167.0,0.00021582,2]
[322561270,1713063032745,-156.7,0.00021689,2]
[322561272,1713063032754,-1984.01564288,0.000217,2]
[322561274,1713063032763,-533.37839116,0.00021896,2]
[322561275,1713063032773,-1000.0,0.00021897,2]
[322561276,1713063032782,-336.19720799,0.00021897,2]
[322561277,1713063032792,-20.4977049,0.00021897,2]
[322561278,1713063032805,-602.58454772,0.00021897,2]
[322561281,1713063032828,-530.62745953,0.00021897,2]
[322561349,1713063040013,-365.66970068,0.00021179,2]
[322561351,1713063040025,-784.65029932,0.00021179,2]
[322561352,1713063040035,-2693.01028785,0.00021897,2]
[322561353,1713063040046,-29390.2622,0.00021898,2]
[322561354,1713063040055,-1857.005302,0.00021899,2]
[322561355,1713063040064,-1553.72791236,0.00021899,2]
[322561356,1713063040073,-150.0,0.000219,2]
[322561357,1713063040082,-152.76,0.00021918,2]
[322561358,1713063040091,-250.0,0.00021918,2]
[322561360,1713063040100,-250.0,0.00021918,2]
[322561362,1713063040110,-150.99,0.00021918,2]
[322561364,1713063040119,-800.0,0.00021973,2]
[322561366,1713063040131,-640.98,0.00021973,2]
[322561368,1713063040142,-549.35,0.00021996,2]
[322561370,1713063040151,-28955.82085969,0.00021998,2]
[322561399,1713063040428,-812.21712815,0.00021998,2]
[322561404,1713063040467,-348.64959659,0.00021998,2]
[322561415,1713063040567,-18945.0,0.00021998,2]
[322561458,1713063040942,-3476.57553016,0.00021998,2]
[322561549,1713063041889,-3416.31500005,0.00021998,2]
[322561555,1713063041932,-354.97491646,0.00021998,2]
[322561558,1713063041946,-252499.07188398,0.00021998,2]
[322561679,1713063043449,-31809.58702454,0.00021998,2]
[322561681,1713063043460,-4155.30026583,0.00021998,2]
[322561699,1713063043615,-213805.30462799,0.00021998,2]
[322561701,1713063043627,-4713.40000002,0.00021998,2]
[322561717,1713063043763,-1199.98856512,0.00021998,2]
[322561938,1713063047640,-216.38658525,0.00021899,2]
[322561939,1713063047650,-731.44470574,0.00021997,2]
[322561940,1713063047660,-155.38097027,0.00021997,2]
[322561941,1713063047670,-1147.29422615,0.00021998,2]
[322561942,1713063047698,-2766.94257352,0.00021998,2]
[322561943,1713063047710,-405.28002546,0.00021998,2]
[322561944,1713063047723,-1795.36741921,0.00021998,2]
[322561945,1713063047735,-1074.00881418,0.00021998,2]
[322561946,1713063047747,-13500.0,0.00021998,2]
[322561954,1713063047874,-182.61737651,0.00021898,2]
[322561956,1713063047884,-545.33262349,0.00021998,2]
[322562001,1713063116334,9677.75712117,0.00015,10]
[322562002,1713063177772,3497.73825417,0.00015,14]
[322562004,1713063257445,507.79369986,0.0002,2]
[322562014,1713063419200,314.43,0.00019409,2]
[322562023,1713063626305,-2289.0945909,0.000225,15]
[322562024,1713063645961,320.0,0.00019765,2]
[322562025,1713063654426,170.48,0.00019913,2]
[322562026,1713063654562,170.48,0.00019968,2]
[322562027,1713063682675,250.0,0.00019724,2]
[322562028,1713063763130,2232.33,0.00019672,2]
[322562029,1713063828241,14251.26,0.00019702,2]
[322562030,1713063884001,326.89,0.00017788,2]
[322562034,1713064094444,268.05,0.00019726,2]
[322562035,1713064104068,744.0,0.00019734,2]
[322562036,1713064153461,230.58,0.00019913,2]
[322562037,1713064153678,230.58,0.00019968,2]
[322562040,1713064164574,-645.12345445,0.00020021,2]
[322562041,1713064164602,-230.58,0.00020022,2]
[322562042,1713064164628,-975.50063785,0.00020022,2]
[322562043,1713064164655,-326.89,0.00020051,2]
[322562044,1713064164693,-230.58,0.00020077,2]
[322562045,1713064164724,-230.58,0.00020132,2]
[322562046,1713064164753,-230.58,0.00020186,2]
[322562047,1713064164781,-230.58,0.00020241,2]
[322562048,1713064164809,-230.58,0.00020295,2]
[322562049,1713064164836,-230.58,0.0002035,2]
[322562050,1713064164863,-150.99,0.0002035,2]
[322562051,1713064164890,-150.99,0.0002035,2]
[322562052,1713064164918,-847.72185482,0.0002035,2]
[322562053,1713064188902,-5030.78754655,0.0002035,2]
[322562070,1713064231778,-916.97059863,0.0002035,2]
[322562071,1713064231790,-1602.44432096,0.000204,2]
[322562072,1713064231801,-230.58,0.00020405,2]
[322562073,1713064231813,-173.26921376,0.00020459,2]
[322562074,1713064231868,-57.31078624,0.00020459,2]
[322562075,1713064231879,-499.99,0.00020459,2]
[322562076,1713064231890,-999.99,0.00020459,2]
[322562077,1713064231901,-230.58,0.00020514,2]
[322562078,1713064231912,-389.88,0.00020528,2]
[322562079,1713064231923,-389.88,0.00020534,2]
[322562080,1713064231936,-389.88,0.00020539,2]
[322562081,1713064231946,-7748.26,0.00020544,2]
[322562082,1713064231957,-389.88,0.00020544,2]
[322562083,1713064231967,-389.88,0.0002055,2]
[322562084,1713064231980,-389.88,0.00020555,2]
[322562085,1713064231991,-389.88,0.00020561,2]
[322562086,1713064232001,-389.88,0.00020566,2]
[322562087,1713064232011,-230.58,0.00020568,2]
[322562088,1713064232021,-150.99,0.00020571,2]
[322562089,1713064232031,-389.88,0.00020571,2]
[322562090,1713064232042,-389.88,0.00020577,2]
[322562091,1713064232053,-389.88,0.00020582,2]
[322562092,1713064232064,-389.88,0.00020588,2]
[322562093,1713064232074,-389.88,0.00020593,2]
[322562094,1713064232084,-389.88,0.00020598,2]
[322562095,1713064232095,-389.88,0.00020604,2]
[322562096,1713064232105,-389.88,0.00020609,2]
[322562097,1713064232116,-389.88,0.00020615,2]
[322562098,1713064232127,-389.88,0.0002062,2]
[322562100,1713064232137,-230.58,0.00020623,2]
[322562102,1713064232148,-389.88,0.00020625,2]
[322562103,1713064232159,-389.88,0.00020631,2]
[322562104,1713064232169,-230.58,0.00020678,2]
[322562105,1713064232180,-230.58,0.00020732,2]
[322562106,1713064232190,-230.58,0.00020787,2]
[322562107,1713064232200,-161.49471564,0.00020797,2]
[322562108,1713064232210,-5059.71765705,0.00020799,2]
[322562109,1713064232220,-180.1680207,0.000208,4]
[322562110,1713064232234,-3542.0098,0.000208,2]
[322562111,1713064232245,-255.7749,0.000208,2]
[322562112,1713064232255,-151.7736,0.000208,2]
[322562113,1713064232265,-3547.35533686,0.000208,2]
[322562114,1713064232279,-1330.8232071,0.000208,2]
[322562115,1713064232289,-1070.31360747,0.000208,2]
[322562116,1713064232337,-438.97877864,0.000208,2]
[322562117,1713064232351,-405.20748901,0.000208,2]
[322562118,1713064232365,-344.1262584,0.000208,2]
[322562119,1713064232466,-241.37386648,0.000208,2]
[322562120,1713064232477,-2908.62613352,0.00020811,2]
[322562121,1713064232490,-1969.55241042,0.00020811,2]
[322562122,1713064232500,-702.50748214,0.00020822,2]
[322562123,1713064232539,-4175.6710618,0.00020822,2]
[322562124,1713064232549,-161.4947156,0.00020823,2]
[322562125,1713064232559,-681.84622261,0.00020833,2]
[322562126,1713064232571,-4196.33232133,0.00020833,2]
[322562127,1713064232581,-230.58,0.00020841,2]
[322562128,1713064232591,-1885.2683892,0.00020844,2]
[322562129,1713064232644,-2992.91015474,0.00020844,2]
[322562130,1713064232654,-161.4947156,0.00020849,2]
[322562131,1713064232663,-633.22251566,0.00020856,2]
[322562132,1713064232676,-4244.95602828,0.00020856,2]
[322562133,1713064232686,-4858.65726769,0.00020867,2]
[322562134,1713064232695,-4878.17854394,0.00020867,2]
[322562135,1713064232705,-161.4947156,0.00020874,2]
[322562136,1713064232715,-1784.69324446,0.00020875,2]
[322562137,1713064232728,-4858.65726769,0.00020878,2]
[322562138,1713064232738,-4878.17854394,0.00020878,2]
[322562139,1713064232750,-4858.65726769,0.00020889,2]
[322562140,1713064232760,-4878.17854394,0.00020889,2]
[322562141,1713064232770,-166.04,0.0002089,2]
[322562142,1713064232780,-230.58,0.00020896,2]
[322562143,1713064232790,-16598.883,0.00020897,2]
[322562144,1713064232800,-1000.0,0.00020897,2]
[322562145,1713064232810,-594.2593,0.00020898,2]
[322562146,1713064232821,-650.2969925,0.000209,2]
[322562147,1713064232832,-8105.95108415,0.000209,2]
[322562148,1713064232856,-1207.64325977,0.000209,2]
[322562149,1713064232868,-301.44505381,0.000209,2]
[322562159,1713064237761,-692.79472096,0.000209,2]